[Event "15e Open International de Quenza"]
[Site "Quenza"]
[Date "2026.07.05"]
[Round "6.2"]
[White "MAURIZZI, Marc Andria"]
[Black "PAKLEZA, Zbigniew"]
[Result "1-0"]
[TimeControl "5min+3s"]
[WhiteTitle "GM"]
[BlackTitle "GM"]
[WhiteFideId "-"]
[BlackFideId "-"]
[WhiteElo "2556"]
[BlackElo "2453"]

1. e4 {[%clk 00:05:03]} d6 {[%clk 00:05:03]} {[%emt 00:00:01]} 2. d4 {[%clk
00:05:03]} {[%emt 00:00:03]} Nf6 {[%clk 00:05:03]} 3. Bd3 {[%clk 00:05:03]} e5
{[%clk 00:05:03]} {[%emt 00:00:02]} 4. Nf3 {[%clk 00:05:03]} exd4 {[%clk
00:05:03]} {[%emt 00:00:02]} 5. Nxd4 {[%clk 00:05:03]} Nbd7 {[%clk 00:05:03]}
{[%emt 00:00:01]} 6. O-O {[%clk 00:05:03]} {[%emt 00:00:03]} Nc5 {[%clk
00:05:03]} 7. Nc3 {[%clk 00:05:03]} Be7 {[%clk 00:05:03]} {[%emt 00:00:01]} 8.
Re1 {[%clk 00:05:03]} {[%emt 00:00:02]} Nxd3 {[%clk 00:05:03]} {[%emt
00:00:02]} 9. Qxd3 {[%clk 00:05:03]} {[%emt 00:00:02]} O-O {[%clk 00:05:03]}
{[%emt 00:00:02]} 10. Bf4 {[%clk 00:05:00]} {[%emt 00:00:06]} Re8 {[%clk
00:04:56]} {[%emt 00:00:11]} 11. h3 {[%clk 00:04:59]} {[%emt 00:00:03]} c6
{[%clk 00:04:46]} {[%emt 00:00:13]} 12. Rad1 {[%clk 00:04:58]} {[%emt
00:00:04]} Qb6 {[%clk 00:03:38]} {[%emt 00:01:11]} 13. Nb3 {[%clk 00:04:51]}
{[%emt 00:00:09]} Be6 {[%clk 00:02:56]} {[%emt 00:00:44]} 14. Bxd6 {[%clk
00:04:32]} {[%emt 00:00:23]} Rad8 {[%clk 00:02:39]} {[%emt 00:00:20]} 15. Qg3
{[%clk 00:04:13]} {[%emt 00:00:22]} Bxd6 {[%clk 00:01:39]} {[%emt 00:01:03]} 16.
Rxd6 {[%clk 00:04:13]} {[%emt 00:00:01]} Qb4 {[%clk 00:01:39]} {[%emt
00:00:02]} 17. Rxd8 {[%clk 00:04:06]} {[%emt 00:00:10]} Rxd8 {[%clk 00:01:39]}
18. Qe3 {[%clk 00:04:04]} {[%emt 00:00:05]} Qb6 {[%clk 00:01:02]} {[%emt
00:00:40]} 19. Qxb6 {[%clk 00:03:38]} {[%emt 00:00:29]} axb6 {[%clk 00:01:02]}
{[%emt 00:00:01]} 20. f3 {[%clk 00:03:38]} Kf8 {[%clk 00:01:02]} {[%emt
00:00:04]} 21. Rd1 {[%clk 00:03:38]} {[%emt 00:00:02]} Ra8 {[%clk 00:01:02]}
{[%emt 00:00:02]} 22. Nd4 {[%clk 00:03:33]} {[%emt 00:00:09]} Ke7 {[%clk
00:00:55]} {[%emt 00:00:09]} 23. a4 {[%clk 00:03:31]} {[%emt 00:00:04]} Nd7
{[%clk 00:00:47]} {[%emt 00:00:12]} 24. Kf2 {[%clk 00:03:31]} {[%emt 00:00:02]}
g6 {[%clk 00:00:47]} {[%emt 00:00:03]} 25. b3 {[%clk 00:03:30]} {[%emt
00:00:04]} Nc5 {[%clk 00:00:47]} {[%emt 00:00:02]} 26. Nce2 {[%clk 00:03:25]}
{[%emt 00:00:08]} Bd7 {[%clk 00:00:46]} {[%emt 00:00:03]} 27. Ke3 {[%clk
00:03:25]} {[%emt 00:00:01]} Na6 {[%clk 00:00:46]} {[%emt 00:00:02]} 28. Nf4
{[%clk 00:02:57]} {[%emt 00:00:31]} Nb4 {[%clk 00:00:45]} {[%emt 00:00:04]} 29.
Nd3 {[%clk 00:02:56]} {[%emt 00:00:04]} Na6 {[%clk 00:00:43]} {[%emt 00:00:06]}
30. Ne5 {[%clk 00:02:47]} {[%emt 00:00:12]} Be8 {[%clk 00:00:43]} 31. Nc4
{[%clk 00:02:47]} b5 {[%clk 00:00:40]} {[%emt 00:00:06]} 32. axb5 {[%clk
00:02:46]} {[%emt 00:00:05]} cxb5 {[%clk 00:00:40]} 33. Nb6 {[%clk 00:02:46]}
Rd8 {[%clk 00:00:34]} {[%emt 00:00:08]} 34. Nd5+ {[%clk 00:02:46]} {[%emt
00:00:02]} Kf8 {[%clk 00:00:32]} {[%emt 00:00:05]} 35. Rd2 {[%clk 00:02:46]}
{[%emt 00:00:03]} Kg7 {[%clk 00:00:25]} {[%emt 00:00:10]} 36. h4 {[%clk
00:02:41]} {[%emt 00:00:08]} Rc8 {[%clk 00:00:25]} {[%emt 00:00:02]} 37. g4
{[%clk 00:02:34]} {[%emt 00:00:10]} Bc6 {[%clk 00:00:20]} {[%emt 00:00:07]} 38.
Nf4 {[%clk 00:02:19]} {[%emt 00:00:18]} Nb4 {[%clk 00:00:15]} {[%emt 00:00:08]}
39. c3 {[%clk 00:02:17]} {[%emt 00:00:06]} Na6 {[%clk 00:00:15]} {[%emt
00:00:01]} 40. g5 {[%clk 00:02:17]} {[%emt 00:00:02]} Be8 {[%clk 00:00:15]}
{[%emt 00:00:04]} 41. Nd5 {[%clk 00:02:17]} {[%emt 00:00:01]} Nc7 {[%clk
00:00:15]} {[%emt 00:00:02]} 42. Nb6 {[%clk 00:02:16]} {[%emt 00:00:04]} Rb8
{[%clk 00:00:15]} {[%emt 00:00:03]} 43. f4 {[%clk 00:02:15]} {[%emt 00:00:04]}
Na8 {[%clk 00:00:14]} {[%emt 00:00:03]} 44. Nd5 {[%clk 00:02:15]} {[%emt
00:00:02]} Bc6 {[%clk 00:00:09]} {[%emt 00:00:09]} 45. Nb4 {[%clk 00:02:15]}
{[%emt 00:00:03]} Rc8 {[%clk 00:00:09]} {[%emt 00:00:02]} 46. f5 {[%clk
00:02:15]} {[%emt 00:00:02]} Nb6 {[%clk 00:00:07]} {[%emt 00:00:05]} 47. f6+
{[%clk 00:02:13]} {[%emt 00:00:05]} Kf8 {[%clk 00:00:07]} 48. Ndxc6 {[%clk
00:02:13]} {[%emt 00:00:01]} bxc6 {[%clk 00:00:07]} 49. Rd6 {[%clk 00:02:07]}
{[%emt 00:00:08]} c5 {[%clk 00:00:05]} {[%emt 00:00:05]} 50. Na6 {[%clk
00:02:07]} {[%emt 00:00:03]} Na8 {[%emt 00:00:05]} 51. Nxc5 {[%clk 00:02:07]}
Ke8 {[%clk 00:00:05]} {[%emt 00:00:03]} 52. b4 {[%clk 00:02:06]} {[%emt
00:00:04]} Nc7 {[%clk 00:00:05]} {[%emt 00:00:01]} 53. Rc6 {[%clk 00:02:04]}
{[%emt 00:00:05]} Kd8 {[%clk 00:00:05]} 54. Rd6+ {[%clk 00:02:04]} {[%emt
00:00:03]} Ke8 {[%clk 00:00:05]} 55. Rd7 {[%clk 00:02:02]} {[%emt 00:00:04]}
Na8 {[%clk 00:00:05]} {[%emt 00:00:04]} 56. Re7+ {[%clk 00:02:01]} {[%emt
00:00:03]} Kf8 {[%clk 00:00:05]} 57. e5 {[%clk 00:01:58]} {[%emt 00:00:06]} Nb6
{[%clk 00:00:05]} 58. Rb7 {[%clk 00:01:58]} {[%emt 00:00:03]} Nd5+ {[%clk
00:00:05]} {[%emt 00:00:01]} 59. Kf3 {[%clk 00:01:58]} {[%emt 00:00:01]} Re8
{[%clk 00:00:05]} {[%emt 00:00:03]} 60. e6 {[%clk 00:01:52]} {[%emt 00:00:09]}
fxe6 {[%clk 00:00:05]} 61. Rxh7 {[%clk 00:01:52]} Kg8 {[%clk 00:00:05]} {[%emt
00:00:03]} 62. f7+ {[%clk 00:01:52]} 1-0

[ePGN "0.1;DGT LiveChess/2.2.11"]

[Event "15e Open International de Quenza"]
[Site "Quenza"]
[Date "2026.07.05"]
[Round "9.4"]
[White "FEDORCHUK, Sergey A."]
[Black "MULLON, Jean-Baptiste"]
[Result "1-0"]
[TimeControl "5min+3s"]
[WhiteTitle "GM"]
[BlackTitle "IM"]
[WhiteFideId "-"]
[BlackFideId "-"]
[WhiteElo "2530"]
[BlackElo "2198"]

1. e4 {[%clk 00:05:03]} {[%emt 00:00:02]} c5 {[%clk 00:05:03]} {[%emt
00:00:02]} 2. Nf3 {[%clk 00:05:03]} {[%emt 00:00:02]} e6 {[%clk 00:05:03]}
{[%emt 00:00:02]} 3. d4 {[%clk 00:05:03]} {[%emt 00:00:03]} cxd4 {[%clk
00:05:03]} {[%emt 00:00:02]} 4. Nxd4 {[%clk 00:05:03]} {[%emt 00:00:02]} a6
{[%clk 00:05:03]} {[%emt 00:00:04]} 5. a3 {[%clk 00:05:00]} {[%emt 00:00:07]}
Qc7 {[%clk 00:04:58]} {[%emt 00:00:07]} 6. c4 {[%clk 00:04:57]} {[%emt
00:00:07]} Nf6 {[%clk 00:04:49]} {[%emt 00:00:12]} 7. Nc3 {[%clk 00:04:57]}
{[%emt 00:00:02]} Nc6 {[%clk 00:04:41]} {[%emt 00:00:11]} 8. Be3 {[%clk
00:04:57]} {[%emt 00:00:02]} Be7 {[%clk 00:04:25]} {[%emt 00:00:19]} 9. Be2
{[%clk 00:04:45]} {[%emt 00:00:14]} O-O {[%clk 00:04:22]} {[%emt 00:00:06]} 10.
O-O {[%clk 00:04:45]} {[%emt 00:00:03]} b6 {[%clk 00:04:16]} {[%emt 00:00:10]}
11. Rc1 {[%clk 00:04:45]} {[%emt 00:00:02]} Nxd4 {[%clk 00:04:09]} {[%emt
00:00:10]} 12. Qxd4 {[%clk 00:04:35]} {[%emt 00:00:13]} Bc5 {[%clk 00:04:04]}
{[%emt 00:00:07]} 13. Qd3 {[%clk 00:04:35]} {[%emt 00:00:01]} Bb7 {[%clk
00:04:03]} {[%emt 00:00:04]} 14. b4 {[%clk 00:04:32]} {[%emt 00:00:06]} Bxe3
{[%clk 00:04:00]} {[%emt 00:00:06]} 15. Qxe3 {[%clk 00:04:32]} {[%emt
00:00:02]} d6 {[%clk 00:03:59]} {[%emt 00:00:04]} 16. f3 {[%clk 00:04:28]}
{[%emt 00:00:07]} Rab8 {[%clk 00:03:45]} {[%emt 00:00:16]} 17. Rfd1 {[%clk
00:04:28]} {[%emt 00:00:02]} Rfd8 {[%clk 00:03:44]} {[%emt 00:00:04]} 18. Bf1
{[%clk 00:04:04]} {[%emt 00:00:27]} h6 {[%clk 00:03:44]} {[%emt 00:00:02]} 19.
Rd2 {[%clk 00:03:31]} {[%emt 00:00:36]} Nd7 {[%clk 00:03:35]} {[%emt 00:00:13]}
20. Rdc2 {[%clk 00:02:46]} {[%emt 00:00:48]} Ba8 {[%clk 00:03:15]} {[%emt
00:00:23]} 21. Ne2 {[%clk 00:02:41]} {[%emt 00:00:07]} Nf8 {[%clk 00:03:02]}
{[%emt 00:00:16]} 22. Nf4 {[%clk 00:02:41]} {[%emt 00:00:03]} Qe7 {[%clk
00:03:01]} {[%emt 00:00:05]} 23. Nd3 {[%clk 00:02:26]} {[%emt 00:00:18]} e5
{[%clk 00:02:51]} {[%emt 00:00:12]} 24. c5 {[%clk 00:02:18]} {[%emt 00:00:12]}
bxc5 {[%clk 00:02:51]} {[%emt 00:00:03]} 25. bxc5 {[%clk 00:02:18]} dxc5 {[%clk
00:02:32]} {[%emt 00:00:22]} 26. Nxc5 {[%clk 00:02:11]} {[%emt 00:00:09]} a5
{[%clk 00:02:22]} {[%emt 00:00:13]} 27. Na6 {[%clk 00:02:06]} {[%emt 00:00:09]}
Rb7 {[%clk 00:02:05]} {[%emt 00:00:19]} 28. Qc5 {[%clk 00:02:03]} {[%emt
00:00:06]} Qg5 {[%clk 00:01:53]} {[%emt 00:00:15]} 29. Qxa5 {[%clk 00:01:51]}
{[%emt 00:00:15]} Ne6 {[%clk 00:01:46]} {[%emt 00:00:10]} 30. Qe1 {[%clk
00:01:51]} {[%emt 00:00:02]} Rbd7 {[%clk 00:01:38]} {[%emt 00:00:11]} 31. Nc5
{[%clk 00:01:43]} {[%emt 00:00:11]} Nxc5 {[%clk 00:01:37]} {[%emt 00:00:05]} 32.
Rxc5 {[%clk 00:01:43]} Kh7 {[%clk 00:01:21]} {[%emt 00:00:19]} 33. R5c2 {[%clk
00:01:43]} {[%emt 00:00:02]} Rd4 {[%clk 00:01:09]} {[%emt 00:00:15]} 34. Qg3
{[%clk 00:01:27]} {[%emt 00:00:19]} Qe3+ {[%clk 00:01:06]} {[%emt 00:00:07]} 35.
Qf2 {[%clk 00:01:27]} Qxa3 {[%clk 00:01:06]} {[%emt 00:00:02]} 36. Rc7 {[%clk
00:01:27]} {[%emt 00:00:02]} R8d7 {[%clk 00:01:04]} {[%emt 00:00:05]} 37. h3
{[%clk 00:01:25]} {[%emt 00:00:06]} Qd6 {[%clk 00:01:04]} {[%emt 00:00:03]} 38.
Rxd7 {[%clk 00:01:12]} {[%emt 00:00:16]} Qxd7 {[%clk 00:01:04]} 39. Qg3 {[%clk
00:01:09]} {[%emt 00:00:05]} Qd6 {[%clk 00:01:03]} {[%emt 00:00:03]} 40. Qg4
{[%clk 00:01:09]} {[%emt 00:00:02]} g6 {[%clk 00:01:03]} {[%emt 00:00:02]} 41.
Qc8 {[%clk 00:01:09]} {[%emt 00:00:03]} Ra4 {[%clk 00:00:45]} {[%emt 00:00:19]}
42. Qe8 {[%clk 00:01:09]} {[%emt 00:00:05]} Ra7 {[%clk 00:00:42]} {[%emt
00:00:07]} 43. Rc8 {[%clk 00:01:09]} {[%emt 00:00:03]} 1-0

[Event "15e Open International de Quenza"]
[Site "Quenza"]
[Date "2026.07.05"]
[Round "9.3"]
[White "KOELLE, Tobias"]
[Black "DELADERRIERE, Apollo"]
[Result "1-0"]
[TimeControl "5min+3s"]
[WhiteTitle "IM"]
[BlackTitle "-"]
[WhiteFideId "-"]
[BlackFideId "-"]
[WhiteElo "2613"]
[BlackElo "2111"]

1. d4 {[%clk 00:05:03]} d5 {[%clk 00:05:03]} {[%emt 00:00:01]} 2. c4 {[%clk
00:05:03]} {[%emt 00:00:01]} c6 {[%clk 00:05:03]} {[%emt 00:00:02]} 3. cxd5
{[%clk 00:05:03]} {[%emt 00:00:01]} cxd5 {[%clk 00:05:03]} {[%emt 00:00:02]} 4.
Bg5 {[%clk 00:05:03]} {[%emt 00:00:01]} h6 {[%clk 00:04:56]} {[%emt 00:00:11]}
5. Bh4 {[%clk 00:05:03]} {[%emt 00:00:01]} Nc6 {[%clk 00:04:54]} {[%emt
00:00:06]} 6. Nc3 {[%clk 00:05:03]} {[%emt 00:00:01]} a6 {[%clk 00:04:40]}
{[%emt 00:00:17]} 7. e3 {[%clk 00:05:03]} {[%emt 00:00:03]} g5 {[%clk
00:04:33]} {[%emt 00:00:11]} 8. Bg3 {[%clk 00:05:03]} {[%emt 00:00:01]} Bg7
{[%clk 00:04:33]} {[%emt 00:00:02]} 9. Nf3 {[%clk 00:05:03]} {[%emt 00:00:02]}
Nf6 {[%clk 00:04:33]} {[%emt 00:00:02]} 10. Ne5 {[%clk 00:05:03]} {[%emt
00:00:03]} O-O {[%clk 00:04:28]} {[%emt 00:00:08]} 11. Bd3 {[%clk 00:05:02]}
{[%emt 00:00:04]} Nxe5 {[%clk 00:04:14]} {[%emt 00:00:18]} 12. Bxe5 {[%clk
00:05:02]} {[%emt 00:00:01]} b5 {[%clk 00:03:49]} {[%emt 00:00:29]} 13. O-O
{[%clk 00:05:00]} {[%emt 00:00:04]} Bb7 {[%clk 00:03:49]} {[%emt 00:00:03]} 14.
Rc1 {[%clk 00:05:00]} {[%emt 00:00:01]} Rc8 {[%clk 00:03:39]} {[%emt 00:00:13]}
15. Bb1 {[%clk 00:04:47]} {[%emt 00:00:15]} Qd7 {[%clk 00:03:31]} {[%emt
00:00:12]} 16. Bxf6 {[%clk 00:04:35]} {[%emt 00:00:15]} exf6 {[%clk 00:02:14]}
{[%emt 00:01:20]} 17. Qf3 {[%clk 00:04:27]} {[%emt 00:00:10]} Rc4 {[%clk
00:01:40]} {[%emt 00:00:39]} 18. Bd3 {[%clk 00:04:25]} {[%emt 00:00:04]} Rc7
{[%clk 00:01:40]} {[%emt 00:00:02]} 19. h3 {[%clk 00:04:25]} {[%emt 00:00:02]}
Qd6 {[%clk 00:01:38]} {[%emt 00:00:05]} 20. Ne2 {[%clk 00:04:08]} {[%emt
00:00:20]} Rfc8 {[%clk 00:01:34]} {[%emt 00:00:07]} 21. Rxc7 {[%clk 00:04:06]}
{[%emt 00:00:05]} Rxc7 {[%clk 00:01:34]} {[%emt 00:00:01]} 22. Ng3 {[%clk
00:04:06]} {[%emt 00:00:02]} Bc8 {[%clk 00:01:21]} {[%emt 00:00:16]} 23. Nf5
{[%clk 00:04:06]} {[%emt 00:00:01]} Bxf5 {[%clk 00:01:15]} {[%emt 00:00:09]} 24.
Qxf5 {[%clk 00:04:06]} {[%emt 00:00:02]} Qe6 {[%clk 00:01:09]} {[%emt
00:00:10]} 25. Qf3 {[%clk 00:04:00]} {[%emt 00:00:08]} Rc6 {[%clk 00:00:51]}
{[%emt 00:00:22]} 26. a3 {[%clk 00:04:00]} {[%emt 00:00:03]} Bf8 {[%clk
00:00:48]} {[%emt 00:00:06]} 27. Bb1 {[%clk 00:04:00]} {[%emt 00:00:02]} Qd7
{[%clk 00:00:43]} {[%emt 00:00:08]} 28. g3 {[%clk 00:03:41]} {[%emt 00:00:21]}
a5 {[%clk 00:00:30]} {[%emt 00:00:17]} 29. Kg2 {[%clk 00:03:38]} {[%emt
00:00:06]} b4 {[%clk 00:00:30]} {[%emt 00:00:01]} 30. axb4 {[%clk 00:03:38]}
{[%emt 00:00:01]} axb4 {[%clk 00:00:30]} 31. Bd3 {[%clk 00:03:37]} {[%emt
00:00:04]} Bg7 {[%clk 00:00:20]} {[%emt 00:00:13]} 32. Bb5 {[%clk 00:03:37]}
{[%emt 00:00:02]} Qd6 {[%clk 00:00:12]} {[%emt 00:00:11]} 33. Bxc6 {[%clk
00:03:37]} {[%emt 00:00:02]} Qxc6 {[%clk 00:00:12]} {[%emt 00:00:01]} 34. Qf5
{[%clk 00:03:36]} {[%emt 00:00:03]} 1-0

[Event "15e Open International de Quenza"]
[Site "Quenza"]
[Date "2026.07.05"]
[Round "9.2"]
[White "LAGARDE, Maxime"]
[Black "PAKLEZA, Zbigniew"]
[Result "1-0"]
[TimeControl "5min+3s"]
[WhiteTitle "GM"]
[BlackTitle "GM"]
[WhiteFideId "-"]
[BlackFideId "-"]
[WhiteElo "2583"]
[BlackElo "2453"]

1. e4 {[%clk 00:05:03]} d5 {[%clk 00:05:03]} 2. exd5 {[%clk 00:05:03]} {[%emt
00:00:03]} Nf6 {[%clk 00:05:03]} {[%emt 00:00:01]} 3. d4 {[%clk 00:05:03]}
{[%emt 00:00:03]} Nxd5 {[%clk 00:05:03]} {[%emt 00:00:01]} 4. Nf3 {[%clk
00:05:03]} {[%emt 00:00:01]} Bg4 {[%clk 00:05:03]} 5. Be2 {[%clk 00:05:03]}
{[%emt 00:00:02]} e6 {[%clk 00:05:03]} 6. O-O {[%clk 00:05:03]} {[%emt
00:00:02]} Be7 {[%clk 00:05:03]} {[%emt 00:00:01]} 7. h3 {[%clk 00:04:48]}
{[%emt 00:00:18]} Bh5 {[%clk 00:05:03]} {[%emt 00:00:02]} 8. Re1 {[%clk
00:04:47]} {[%emt 00:00:03]} O-O {[%clk 00:05:03]} {[%emt 00:00:02]} 9. Ne5
{[%clk 00:04:41]} {[%emt 00:00:09]} Bxe2 {[%clk 00:05:03]} {[%emt 00:00:02]} 10.
Qxe2 {[%clk 00:04:41]} {[%emt 00:00:01]} Nd7 {[%clk 00:05:02]} {[%emt
00:00:05]} 11. c4 {[%clk 00:04:28]} {[%emt 00:00:17]} N5f6 {[%clk 00:04:57]}
{[%emt 00:00:08]} 12. Nf3 {[%clk 00:04:19]} {[%emt 00:00:11]} Re8 {[%clk
00:04:48]} {[%emt 00:00:12]} 13. Nc3 {[%clk 00:04:19]} {[%emt 00:00:01]} c6
{[%clk 00:04:44]} {[%emt 00:00:07]} 14. Bf4 {[%clk 00:04:18]} {[%emt 00:00:04]}
Qa5 {[%clk 00:04:44]} {[%emt 00:00:03]} 15. a3 {[%clk 00:04:15]} {[%emt
00:00:06]} Qf5 {[%clk 00:04:44]} {[%emt 00:00:01]} 16. Bg3 {[%clk 00:04:09]}
{[%emt 00:00:09]} h6 {[%clk 00:04:44]} {[%emt 00:00:02]} 17. Rad1 {[%clk
00:04:09]} {[%emt 00:00:03]} a6 {[%clk 00:04:37]} {[%emt 00:00:10]} 18. Rd3
{[%clk 00:03:55]} {[%emt 00:00:17]} Rad8 {[%clk 00:04:00]} {[%emt 00:00:40]} 19.
Re3 {[%clk 00:03:55]} {[%emt 00:00:03]} Bf8 {[%clk 00:03:54]} {[%emt 00:00:09]}
20. b4 {[%clk 00:03:07]} {[%emt 00:00:51]} b5 {[%clk 00:03:29]} {[%emt
00:00:28]} 21. Ne5 {[%clk 00:02:50]} {[%emt 00:00:20]} Rc8 {[%clk 00:02:47]}
{[%emt 00:00:45]} 22. Rf3 {[%clk 00:02:46]} {[%emt 00:00:06]} Qh7 {[%clk
00:02:35]} {[%emt 00:00:15]} 23. c5 {[%clk 00:02:37]} {[%emt 00:00:12]} Nxe5
{[%clk 00:02:10]} {[%emt 00:00:28]} 24. dxe5 {[%clk 00:02:37]} {[%emt
00:00:01]} Nd5 {[%clk 00:02:08]} {[%emt 00:00:05]} 25. Ne4 {[%clk 00:02:37]}
Rc7 {[%clk 00:02:01]} {[%emt 00:00:10]} 26. Bf4 {[%clk 00:02:23]} {[%emt
00:00:17]} Ra8 {[%clk 00:01:46]} {[%emt 00:00:19]} 27. Bd2 {[%clk 00:02:23]}
{[%emt 00:00:03]} Be7 {[%clk 00:01:38]} {[%emt 00:00:11]} 28. Rb1 {[%clk
00:02:17]} {[%emt 00:00:08]} Rd7 {[%clk 00:01:38]} {[%emt 00:00:03]} 29. Rbb3
{[%clk 00:02:17]} {[%emt 00:00:02]} Rad8 {[%clk 00:01:28]} {[%emt 00:00:12]} 30.
Rg3 {[%clk 00:02:09]} {[%emt 00:00:11]} Kh8 {[%clk 00:01:28]} {[%emt 00:00:01]}
31. Rbf3 {[%clk 00:02:09]} {[%emt 00:00:02]} f5 {[%clk 00:01:19]} {[%emt
00:00:13]} 32. exf6 {[%clk 00:01:20]} {[%emt 00:00:53]} Nxf6 {[%clk 00:01:19]}
{[%emt 00:00:01]} 33. Nxf6 {[%clk 00:01:12]} {[%emt 00:00:11]} Bxf6 {[%clk
00:01:19]} {[%emt 00:00:01]} 34. Rxf6 {[%clk 00:00:42]} {[%emt 00:00:33]} gxf6
{[%clk 00:00:50]} {[%emt 00:00:31]} 35. Qxe6 {[%clk 00:00:42]} Rg7 {[%clk
00:00:35]} {[%emt 00:00:19]} 36. Bc3 {[%clk 00:00:31]} {[%emt 00:00:14]} Rd1+
{[%clk 00:00:17]} {[%emt 00:00:21]} 37. Kh2 {[%clk 00:00:31]} Rxg3 {[%clk
00:00:17]} {[%emt 00:00:01]} 38. fxg3 {[%clk 00:00:23]} {[%emt 00:00:11]} Qd7
{[%clk 00:00:06]} {[%emt 00:00:14]} 39. Qxf6+ {[%clk 00:00:23]} {[%emt
00:00:03]} Kg8 {[%clk 00:00:05]} {[%emt 00:00:03]} 40. Be5 {[%clk 00:00:19]}
{[%emt 00:00:07]} Rd5 {[%clk 00:00:04]} {[%emt 00:00:04]} 41. Qg6+ {[%clk
00:00:19]} {[%emt 00:00:03]} Kf8 {[%clk 00:00:04]} 42. Bd6+ {[%clk 00:00:19]}
{[%emt 00:00:03]} Rxd6 {[%clk 00:00:04]} 43. cxd6 {[%clk 00:00:19]} {[%emt
00:00:03]} h5 {[%clk 00:00:04]} {[%emt 00:00:01]} 44. Qf6+ {[%clk 00:00:19]}
{[%emt 00:00:03]} Kg8 {[%clk 00:00:04]} {[%emt 00:00:03]} 45. Kg1 {[%clk
00:00:17]} {[%emt 00:00:06]} a5 {[%clk 00:00:04]} {[%emt 00:00:01]} 46. bxa5
{[%clk 00:00:17]} {[%emt 00:00:01]} c5 {[%emt 00:00:01]} 47. a6 {[%clk
00:00:17]} b4 {[%clk 00:00:04]} {[%emt 00:00:01]} 48. axb4 {[%clk 00:00:16]}
{[%emt 00:00:04]} cxb4 {[%clk 00:00:04]} 49. Qe7 {[%clk 00:00:14]} {[%emt
00:00:04]} Qb5 {[%clk 00:00:04]} {[%emt 00:00:04]} 50. d7 {[%clk 00:00:13]}
{[%emt 00:00:04]} 1-0

[Event "15e Open International de Quenza"]
[Site "Quenza"]
[Date "2026.07.05"]
[Round "9.16"]
[White "TANNOUS BONELLI, Maxime"]
[Black "ROUBERT, Emile"]
[Result "0-1"]
[TimeControl "5min+3s"]
[WhiteTitle "-"]
[BlackTitle "-"]
[WhiteFideId "-"]
[BlackFideId "-"]
[WhiteElo "1802"]
[BlackElo "2021"]

1. e4 {[%emt 00:10:45]} e5 2. Nf3 {[%emt 00:00:01]} Nc6 3. Bc4 {[%emt
00:00:02]} Nf6 4. d3 {[%emt 00:00:02]} Bc5 5. Nc3 d6 {[%emt 00:00:02]} 6. Be3
Bxe3 {[%emt 00:00:05]} 7. fxe3 {[%emt 00:00:02]} a6 {[%emt 00:00:02]} 8. O-O
{[%emt 00:00:09]} Na5 {[%emt 00:00:03]} 9. Bb3 {[%emt 00:00:03]} Nxb3 {[%emt
00:00:02]} 10. axb3 {[%emt 00:00:02]} O-O {[%emt 00:00:10]} 11. h3 {[%emt
00:00:03]} Re8 {[%emt 00:00:05]} 12. Qd2 {[%emt 00:00:01]} d5 {[%emt 00:00:07]}
13. Nxd5 {[%emt 00:00:06]} Nxd5 {[%emt 00:00:01]} 14. exd5 {[%emt 00:00:02]}
Qxd5 {[%emt 00:00:02]} 15. e4 Qc5+ {[%emt 00:00:04]} 16. Qf2 {[%emt 00:00:06]}
Qxf2+ {[%emt 00:00:02]} 17. Rxf2 {[%emt 00:00:02]} c5 {[%emt 00:00:12]} 18. Nd2
{[%emt 00:00:10]} Be6 {[%emt 00:00:15]} 19. Nc4 {[%emt 00:00:06]} Bxc4 {[%emt
00:00:22]} 20. bxc4 {[%emt 00:00:02]} f6 {[%emt 00:00:35]} 21. Rff1 {[%emt
00:00:06]} Red8 {[%emt 00:00:32]} 22. Ra5 {[%emt 00:00:04]} b6 {[%emt
00:00:03]} 23. Ra3 {[%emt 00:00:01]} a5 {[%emt 00:00:04]} 24. Rb3 {[%emt
00:00:04]} Rd6 {[%emt 00:00:02]} 25. Ra3 {[%emt 00:00:06]} Kf7 {[%emt
00:00:04]} 26. Kf2 {[%emt 00:00:01]} Ke6 27. Ke3 {[%emt 00:00:01]} g6 {[%emt
00:00:03]} 28. Raa1 {[%emt 00:00:08]} f5 {[%emt 00:00:05]} 29. exf5+ {[%emt
00:00:04]} gxf5 {[%emt 00:00:01]} 30. b3 {[%emt 00:00:08]} Rg8 {[%emt
00:00:01]} 31. Rf2 {[%emt 00:00:07]} Rg3+ {[%emt 00:00:02]} 32. Ke2 {[%emt
00:00:02]} Rd4 {[%emt 00:00:23]} 33. Rg1 {[%emt 00:00:10]} e4 {[%emt 00:00:09]}
34. dxe4 {[%emt 00:00:08]} fxe4 {[%emt 00:00:02]} 35. Rd1 {[%emt 00:00:05]} Rc3
{[%emt 00:00:06]} 36. Rc1 {[%emt 00:00:24]} Ke5 {[%emt 00:00:14]} 37. Rf8
{[%emt 00:00:03]} Rd6 {[%emt 00:00:23]} 38. Re8+ {[%emt 00:00:05]} Re6 {[%emt
00:00:02]} 39. Rxe6+ {[%emt 00:00:03]} Kxe6 {[%emt 00:00:01]} 40. Kd2 {[%emt
00:00:03]} Rg3 41. Rg1 Ke5 {[%emt 00:00:01]} 42. Ke2 {[%emt 00:00:08]} Kd4
{[%emt 00:00:07]} 43. Kf2 {[%emt 00:00:23]} Rc3 {[%emt 00:00:13]} 44. Rd1+
{[%emt 00:00:03]} Ke5 {[%emt 00:00:01]} 45. Rc1 {[%emt 00:00:03]} Kf4 {[%emt
00:00:11]} 46. Kf1 {[%emt 00:00:17]} a4 {[%emt 00:00:36]} 47. bxa4 {[%emt
00:00:33]} Rxc4 {[%emt 00:00:01]} 48. Kf2 {[%emt 00:00:01]} Rxa4 {[%emt
00:00:03]} 49. g3+ {[%emt 00:00:01]} Ke5 {[%emt 00:00:01]} 50. c3 {[%emt
00:00:02]} b5 {[%emt 00:00:03]} 51. Ke3 {[%emt 00:00:01]} Ra3 {[%emt 00:00:04]}
52. Kd2 {[%emt 00:00:08]} b4 {[%emt 00:00:02]} 53. cxb4 {[%emt 00:00:08]} cxb4
54. Rb1 {[%emt 00:00:16]} Rxg3 {[%emt 00:00:04]} 55. Rxb4 {[%emt 00:00:03]}
Rxh3 56. Rb8 {[%emt 00:00:02]} h5 {[%emt 00:00:18]} 57. Re8+ {[%emt 00:00:01]}
Kf4 {[%emt 00:00:04]} 58. Rf8+ {[%emt 00:00:02]} Kg3 {[%emt 00:00:12]} 59. Ke3
{[%emt 00:00:04]} Rh4 {[%emt 00:00:02]} 60. Rg8 {[%emt 00:00:02]} Kh3 {[%emt
00:00:02]} 61. Kf2 {[%emt 00:00:06]} Rg4 {[%emt 00:00:04]} 62. Rh8 {[%emt
00:00:03]} h4 63. Ra8 {[%emt 00:00:03]} Rg3 {[%emt 00:00:08]} 64. Ra4 {[%emt
00:00:05]} e3+ {[%emt 00:00:01]} 65. Ke2 {[%emt 00:00:02]} Rg4 {[%emt
00:00:07]} 66. Ra3 {[%emt 00:00:13]} Re4 67. Kf3 {[%emt 00:00:12]} Re7 {[%emt
00:00:04]} 68. Ra1 {[%emt 00:00:05]} Kh2 {[%emt 00:00:05]} 69. Re1 {[%emt
00:00:04]} e2 {[%emt 00:00:04]} 70. Kf2 {[%emt 00:00:29]} Rf7+ {[%emt
00:00:14]} 71. Ke3 {[%emt 00:00:06]} Kg3 {[%emt 00:00:05]} 72. Rg1 Kh2 {[%emt
00:00:01]} 73. Re1 Re7+ {[%emt 00:00:03]} 74. Kf2 h3 75. Kf3 {[%emt 00:00:03]}
Rf7+ {[%emt 00:00:03]} 76. Ke3 Rf6 {[%emt 00:00:11]} 77. Rxe2+ {[%emt
00:00:06]} Kg3 78. Kd3 {[%emt 00:00:17]} h2 {[%emt 00:00:03]} 79. Re1 {[%emt
00:00:15]} Kg2 80. Re2+ {[%emt 00:00:01]} Rf2 0-1